lending/lending_fUSD_20240110
["ID","MTS","AMOUNT","RATE_DAILY","PERIOD"]
[311082588,1704899489621,-866.62,0.00030958,2]
[311082589,1704899489631,-500.0,0.00030958,2]
[311082590,1704899489641,-500.0,0.00030958,2]
[311082591,1704899489651,-500.0,0.00030958,2]
[311082592,1704899489660,-645.14627495,0.00030958,2]
[311082593,1704899489671,-534.71,0.00030958,2]
[311082594,1704899489680,-500.0,0.00030958,2]
[311082595,1704899489690,-500.0,0.00030958,2]
[311082596,1704899489700,-500.0,0.00030958,2]
[311082597,1704899489709,-500.0,0.00030958,2]
[311082598,1704899489718,-500.0,0.00030958,2]
[311082599,1704899489728,-500.0,0.00030958,2]
[311082600,1704899489738,-500.0,0.00030958,2]
[311082601,1704899489747,-500.0,0.00030958,7]
[311082602,1704899489757,-500.0,0.00030958,2]
[311082603,1704899489767,-500.0,0.00030958,2]
[311082604,1704899489776,-500.0,0.00030958,2]
[311082605,1704899489786,-1225.32,0.00030958,2]
[311082606,1704899489795,-500.0,0.00030958,2]
[311082607,1704899489805,-500.0,0.00030958,2]
[311082608,1704899489814,-658.97,0.00030958,2]
[311082609,1704899489824,-3030.29,0.00030958,2]
[311082610,1704899489837,-604.0238322,0.00030958,2]
[311082611,1704899489847,-500.0,0.00030958,2]
[311082612,1704899489856,-500.0,0.00030958,2]
[311082613,1704899489865,-1341.6,0.00030958,2]
[311082614,1704899489875,-500.0,0.00030958,2]
[311082616,1704899489884,-401.08574768,0.00030958,2]
[311082617,1704899489893,-500.0,0.00030958,2]
[311082618,1704899489903,-883.13,0.00030958,2]
[311082619,1704899489913,-500.0,0.00030958,2]
[311082620,1704899489922,-500.0,0.00030958,2]
[311082621,1704899489931,-500.0,0.00030958,2]
[311082622,1704899489940,-500.0,0.00030958,2]
[311082623,1704899489950,-500.0,0.00030958,2]
[311082624,1704899489959,-500.0,0.00030958,2]
[311082625,1704899489968,-500.0,0.00030958,2]
[311082626,1704899489978,-592.20278018,0.00030958,2]
[311082627,1704899489987,-500.0,0.00030958,2]
[311082628,1704899489996,-500.0,0.00030958,2]
[311082629,1704899490006,-500.0,0.00030958,2]
[311082630,1704899490015,-500.0,0.00030958,2]
[311082631,1704899490025,-500.0,0.00030958,2]
[311082632,1704899490034,-500.0,0.00030958,2]
[311082633,1704899490044,-500.0,0.00030958,2]
[311082634,1704899490053,-500.0,0.00030958,2]
[311082635,1704899490114,-986.17,0.00030958,2]
[311082636,1704899490124,-500.0,0.00030958,2]
[311082637,1704899490133,-500.0,0.00030958,2]
[311082638,1704899490142,-1190.35,0.00030958,2]
[311082639,1704899490152,-500.0,0.00030958,2]
[311082640,1704899490161,-500.0,0.00030958,2]
[311082641,1704899490170,-1884.54,0.00030958,2]
[311082642,1704899490179,-600.54817386,0.00030958,2]
[311082643,1704899490188,-500.0,0.00030958,2]
[311082644,1704899490197,-500.0,0.00030958,2]
[311082645,1704899490206,-500.0,0.00030958,2]
[311082646,1704899490215,-500.0,0.00030958,2]
[311082647,1704899490224,-575.57,0.00030958,2]
[311082648,1704899490233,-500.0,0.00030958,2]
[311082649,1704899490242,-500.0,0.00030958,2]
[311082650,1704899490251,-500.0,0.00030958,2]
[311082651,1704899490261,-500.0,0.00030958,2]
[311082652,1704899490271,-500.0,0.00030958,2]
[311082653,1704899490281,-500.0,0.00030958,2]
[311082654,1704899490290,-500.0,0.00030958,2]
[311082655,1704899490300,-500.0,0.00030958,2]
[311082656,1704899490309,-362.62712029,0.00030958,2]
[311082657,1704899490334,-137.37287971,0.00030958,2]
[311082658,1704899490344,-500.0,0.00030958,2]
[311082659,1704899490354,-500.0,0.00030958,2]
[311082660,1704899490364,-500.0,0.00030958,2]
[311082661,1704899490373,-500.0,0.00030958,2]
[311082662,1704899490383,-500.0,0.00030958,2]
[311082663,1704899490394,-500.0,0.00030958,2]
[311082664,1704899490404,-500.0,0.00030958,2]
[311082665,1704899490413,-500.0,0.00030958,2]
[311082666,1704899490422,-500.0,0.00030958,2]
[311082667,1704899490431,-500.0,0.00030958,2]
[311082668,1704899490441,-500.0,0.00030958,2]
[311082669,1704899490450,-641.64774885,0.00030958,2]
[311082670,1704899490462,-126.62225115,0.00030958,2]
[311082671,1704899490472,-314.18346885,0.00030958,2]
[311082672,1704899490493,-239.12653115,0.00030958,2]
[311082673,1704899490502,-343.0761116,0.00030958,2]
[311082674,1704899490511,-500.0,0.00030958,2]
[311082675,1704899490520,-500.0,0.00030958,2]
[311082676,1704899490529,-500.0,0.00030958,2]
[311082677,1704899490538,-500.0,0.00030958,2]
[311082678,1704899490548,-500.0,0.00030958,2]
[311082679,1704899490558,-500.0,0.00030958,2]
[311082680,1704899490568,-500.0,0.00030958,2]
[311082681,1704899490578,-500.0,0.00030958,2]
[311082682,1704899490589,-500.0,0.00030958,2]
[311082683,1704899490598,-500.0,0.00030958,2]
[311082684,1704899490607,-245.14171721,0.00030958,2]
[311082685,1704899490620,-254.85828279,0.00030958,2]
[311082686,1704899490631,-273.35857991,0.00030958,2]
[311082687,1704899490644,-226.64142009,0.00030958,2]
[311082688,1704899490655,-500.0,0.00030958,2]
[311082689,1704899490665,-475.73357992,0.00030958,2]
[311082690,1704899490687,-24.26642008,0.00030958,2]
[311082691,1704899490697,-500.0,0.00030958,2]
[311082692,1704899490707,-500.0,0.00030958,2]
[311082693,1704899490717,-500.0,0.00030958,2]
[311082694,1704899490727,-500.0,0.00030958,2]
[311082695,1704899490736,-82.06941621,0.00030958,2]
[311082696,1704899490748,-417.93058379,0.00030958,2]
[311082697,1704899490758,-500.0,0.00030958,2]
[311082698,1704899490767,-500.0,0.00030958,2]
[311082699,1704899490776,-500.0,0.00030958,2]
[311082700,1704899490786,-500.0,0.00030958,2]
[311082701,1704899490795,-1131.59,0.00030958,2]
[311082702,1704899490805,-500.0,0.00030958,2]
[311082703,1704899490814,-696.25,0.00030958,2]
[311082704,1704899490824,-500.0,0.00030958,2]
[311082705,1704899490836,-500.0,0.00030958,2]
[311082706,1704899490845,-500.0,0.00030958,2]
[311082707,1704899490855,-500.0,0.00030958,2]
[311082708,1704899490865,-500.0,0.00030958,2]
[311082709,1704899490874,-500.0,0.00030958,2]
[311082710,1704899490884,-500.0,0.00030958,2]
[311082711,1704899490893,-500.0,0.00030958,2]
[311082712,1704899490903,-500.0,0.00030958,2]
[311082713,1704899490913,-500.0,0.00030958,2]
[311082714,1704899490923,-500.0,0.00030958,2]
[311082715,1704899490938,-500.0,0.00030958,2]
[311082716,1704899490948,-1304.61,0.00030958,2]
[311082717,1704899490958,-520.93,0.00030958,2]
[311082718,1704899490968,-500.0,0.00030958,2]
[311082719,1704899490979,-500.0,0.00030958,2]
[311082720,1704899490989,-500.0,0.00030958,2]
[311082721,1704899490998,-500.0,0.00030958,2]
[311082722,1704899491009,-500.0,0.00030958,2]
[311082723,1704899491019,-500.0,0.00030958,2]
[311082724,1704899491030,-881.59,0.00030958,2]
[311082725,1704899491041,-500.0,0.00030958,2]
[311082726,1704899491052,-500.0,0.00030958,2]
[311082727,1704899491062,-500.0,0.00030958,2]
[311082728,1704899491072,-500.0,0.00030958,2]
[311082729,1704899491084,-500.0,0.00030958,2]
[311082730,1704899491098,-500.0,0.00030958,2]
[311082731,1704899491108,-500.0,0.00030958,2]
[311082732,1704899491118,-319.35557216,0.00030958,2]
[311082733,1704899491131,-180.64442784,0.00030958,2]
[311082734,1704899491140,-500.0,0.00030958,2]
[311082735,1704899491150,-500.0,0.00030958,2]
[311082736,1704899491160,-547.2552663,0.00030958,2]
[311082737,1704899491170,-500.0,0.00030958,2]
[311082738,1704899491180,-500.0,0.00030958,2]
[311082739,1704899491190,-500.0,0.00030958,2]
[311082740,1704899491200,-500.0,0.00030958,2]
[311082741,1704899491210,-500.0,0.00030958,2]
[311082742,1704899491220,-500.0,0.00030958,2]
[311082743,1704899491230,-640.25093778,0.00030958,2]
[311082744,1704899491240,-500.0,0.00030958,2]
[311082745,1704899491250,-500.0,0.00030958,2]
[311082746,1704899491260,-500.0,0.00030958,2]
[311082747,1704899491270,-500.0,0.00030958,2]
[311082748,1704899491279,-500.0,0.00030958,2]
[311082749,1704899491289,-500.0,0.00030958,2]
[311082750,1704899491299,-500.0,0.00030958,2]
[311082751,1704899491309,-500.0,0.00030958,2]
[311082752,1704899491318,-358.49455742,0.00030958,2]
[311082753,1704899491328,-500.0,0.00030958,2]
[311082754,1704899491341,-500.0,0.00030958,2]
[311082755,1704899491351,-500.0,0.00030958,2]
[311082756,1704899491361,-687.85,0.00030958,2]
[311082757,1704899491371,-500.0,0.00030958,2]
[311082758,1704899491381,-150.0,0.00030958,2]
[311082759,1704899491392,-965.56,0.00030958,2]
[311082760,1704899491402,-500.0,0.00030958,2]
[311082761,1704899491412,-500.0,0.00030958,2]
[311082762,1704899491422,-500.0,0.00030958,2]
[311082763,1704899491434,-500.0,0.00030958,2]
[311082764,1704899491443,-222.13160783,0.00030958,2]
[311082765,1704899491453,-500.0,0.00030958,2]
[311082766,1704899491463,-500.0,0.00030958,2]
[311082767,1704899491473,-517.43,0.00030958,2]
[311082768,1704899491483,-607.81767949,0.00030958,2]
[311082769,1704899491494,-500.0,0.00030958,2]
[311082770,1704899491504,-500.0,0.00030958,2]
[311082771,1704899491515,-500.0,0.00030958,2]
[311082772,1704899491525,-500.0,0.00030958,2]
[311082773,1704899491535,-500.0,0.00030958,2]
[311082774,1704899491546,-500.0,0.00030958,2]
[311082775,1704899491556,-500.0,0.00030958,2]
[311082776,1704899491566,-500.0,0.00030958,2]
[311082777,1704899491576,-500.0,0.00030958,2]
[311082778,1704899491588,-500.0,0.00030958,2]
[311082779,1704899491598,-500.0,0.00030958,2]
[311082780,1704899491609,-500.0,0.00030958,2]
[311082781,1704899491619,-500.0,0.00030958,2]
[311082782,1704899491629,-500.0,0.00030958,2]
[311082783,1704899491639,-500.0,0.00030958,2]
[311082784,1704899491649,-500.0,0.00030958,2]
[311082785,1704899491659,-500.0,0.00030958,2]
[311082786,1704899491669,-500.0,0.00030958,2]
[311082787,1704899491680,-500.0,0.00030958,2]
[311082788,1704899491690,-864.12,0.00030958,2]
[311082789,1704899491703,-500.0,0.00030958,2]
[311082790,1704899491712,-500.0,0.00030958,2]
[311082791,1704899491722,-832.86,0.00030958,2]
[311082792,1704899491733,-500.0,0.00030958,2]
[311082793,1704899491742,-500.0,0.00030958,2]
[311082794,1704899491752,-97.61827995,0.00030958,2]
[311082795,1704899491766,-1122.89,0.00030958,2]
[311082796,1704899491778,-697.04172005,0.00030958,2]
[311082797,1704899491788,-500.0,0.00030958,2]
[311082798,1704899491798,-568.05705823,0.00030958,2]
[311082799,1704899491807,-559.88757844,0.00030958,2]
[311082800,1704899491817,-500.0,0.00030958,2]
[311082801,1704899491827,-528.68,0.00030958,2]
[311082802,1704899491840,-1061.96,0.00030958,2]
[311082803,1704899491850,-500.0,0.00030958,2]
[311082804,1704899491859,-292.67946329,0.00030958,2]
[311082805,1704899492783,-207.32053671,0.00030958,2]
[311082806,1704899492793,-179.46505999,0.00030958,2]
[311082807,1704899492805,-320.53494001,0.00030958,2]
[311082808,1704899492814,-98.31459566,0.00030958,2]
[311082809,1704899492826,-401.68540434,0.00030958,2]
[311082810,1704899492837,-149.01025199,0.00030958,2]
[311082811,1704899492849,-350.98974801,0.00030958,2]
[311082812,1704899492858,-226.28959579,0.00030958,2]
[311082813,1704899492871,-273.71040421,0.00030958,2]
[311082814,1704899492880,-500.0,0.00030958,2]
[311082815,1704899492891,-500.0,0.00030958,2]
[311082816,1704899492902,-500.0,0.00030958,2]
[311082817,1704899492912,-500.0,0.00030958,2]
[311082818,1704899492922,-500.0,0.00030958,2]
[311082819,1704899492936,-500.0,0.00030958,2]
[311082820,1704899492946,-500.0,0.00030958,2]
[311082821,1704899492958,-500.0,0.00030958,2]
[311082822,1704899492968,-1189.4,0.00030958,2]
[311082823,1704899492979,-640.81536289,0.00030958,2]
[311082824,1704899492988,-514.88763785,0.00030958,2]
[311082825,1704899492998,-500.0,0.00030958,2]
[311082826,1704899493010,-500.0,0.00030958,2]
[311082827,1704899493020,-855.53,0.00030958,2]
[311082828,1704899493030,-500.0,0.00030958,2]
[311082829,1704899493041,-500.0,0.00030958,2]
[311082830,1704899493052,-500.0,0.00030958,2]
[311082831,1704899493062,-500.0,0.00030958,2]
[311082832,1704899493072,-500.0,0.00030958,2]
[311082833,1704899493083,-3025.87,0.00030958,2]
[311082834,1704899493096,-500.0,0.00030958,2]
[311082835,1704899493106,-500.0,0.00030958,2]
[311082836,1704899493117,-500.0,0.00030958,2]
[311082837,1704899493127,-500.0,0.00030958,2]
[311082838,1704899493138,-500.0,0.00030958,2]
[311082839,1704899493148,-973.78,0.00030958,2]
[311082840,1704899493158,-500.0,0.00030958,2]
[311082841,1704899493168,-500.0,0.00030958,2]
[311082842,1704899493179,-355.76932689,0.00030958,2]
[311082843,1704899493189,-500.0,0.00030958,2]
[311082844,1704899493199,-5187.85,0.00030958,2]
[311082845,1704899493209,-4679.81,0.00030958,2]
[311082846,1704899493219,-500.0,0.00030958,2]
[311082847,1704899493229,-753.15,0.00030958,2]
[311082848,1704899493241,-762.81,0.00030958,2]
[311082849,1704899493251,-500.0,0.00030958,2]
[311082850,1704899493261,-500.0,0.00030958,2]
[311082851,1704899493271,-500.0,0.00030958,2]
[311082852,1704899493281,-500.0,0.00030958,2]
[311082853,1704899493291,-500.0,0.00030958,2]
[311082854,1704899493301,-738.39,0.00030958,2]
[311082855,1704899493311,-335.19956271,0.00030958,2]
[311082856,1704899493321,-4105.9,0.00030958,2]
[311082857,1704899493331,-5519.4,0.00030958,2]
[311082858,1704899493343,-1280.23,0.00030958,2]
[311082859,1704899493352,-739.32,0.00030958,2]
[311082860,1704899493362,-500.0,0.00030958,2]
[311082861,1704899493371,-2711.72,0.00030958,2]
[311082862,1704899493381,-500.0,0.00030958,2]
[311082863,1704899493391,-838.49,0.00030958,2]
[311082864,1704899493401,-500.0,0.00030958,2]
[311082865,1704899493410,-299.0,0.00030958,2]
[311082866,1704899493420,-500.0,0.00030958,2]
[311082867,1704899493430,-500.0,0.00030958,2]
[311082868,1704899493439,-551.13,0.00030958,2]
[311082869,1704899493449,-1044.31,0.00030958,2]
[311082870,1704899493458,-500.0,0.00030958,2]
[311082871,1704899493468,-1137.84,0.00030958,2]
[311082872,1704899493476,-500.0,0.00030958,2]
[311082873,1704899493486,-303.77198929,0.00030958,2]
[311082874,1704899493495,-1704.72,0.00030958,2]
[311082875,1704899493504,-500.0,0.00030958,2]
[311082876,1704899493513,-2455.76,0.00030958,2]
[311082877,1704899493524,-500.0,0.00030958,2]
[311082878,1704899493534,-573.93,0.00030958,2]
[311082879,1704899493543,-500.0,0.00030958,2]
[311082880,1704899493552,-500.0,0.00030958,2]
[311082881,1704899493561,-500.0,0.00030958,2]
[311082882,1704899493571,-500.0,0.00030958,2]
[311082883,1704899493581,-500.0,0.00030958,2]
[311082884,1704899493592,-500.0,0.00030958,2]
[311082885,1704899493601,-500.0,0.00030958,2]
[311082886,1704899493610,-2863.48,0.00030958,2]
[311082887,1704899493619,-1657.02,0.00030958,2]
[311082888,1704899493629,-500.0,0.00030958,2]
[311082889,1704899493638,-1846.07,0.00030958,2]
[311082890,1704899493647,-500.0,0.00030958,2]
[311082891,1704899493656,-500.0,0.00030958,2]
[311082892,1704899493666,-500.0,0.00030958,2]
[311082893,1704899493675,-1372.37,0.00030958,2]
[311082894,1704899493685,-501.81,0.00030958,2]
[311082895,1704899493694,-878.93,0.00030958,2]
[311082896,1704899493704,-542.89,0.00030958,2]
[311082897,1704899493720,-1876.96,0.00030958,2]
[311082898,1704899493729,-500.0,0.00030958,2]
[311082899,1704899493741,-670.99,0.00030958,2]
[311082900,1704899493751,-1458.78,0.00030958,2]
[311082901,1704899493761,-679.4,0.00030958,2]
[311082902,1704899493770,-500.0,0.00030958,2]
[311082903,1704899493779,-638.87,0.00030958,2]
[311082904,1704899493788,-11676.87,0.00030958,2]
[311082905,1704899493797,-500.0,0.00030958,2]
[311082906,1704899493806,-500.0,0.00030958,2]
[311082907,1704899493816,-1372.2,0.00030958,2]
[311082908,1704899493825,-648.09,0.00030958,2]
[311082909,1704899493837,-500.0,0.00030958,2]
[311082910,1704899493848,-500.0,0.00030958,2]
[311082911,1704899493858,-500.0,0.00030958,2]
[311082912,1704899493868,-1243.38,0.00030958,2]
[311082913,1704899493877,-500.0,0.00030958,2]
[311082914,1704899493886,-500.0,0.00030958,2]
[311082915,1704899493895,-523.89,0.00030958,2]
[311082916,1704899493905,-3311.5,0.00030958,2]
[311082917,1704899493915,-500.0,0.00030958,2]
[311082918,1704899493925,-1276.1,0.00030958,2]
[311082919,1704899493934,-1643.29,0.00030958,2]
[311082920,1704899493943,-500.0,0.00030958,2]
[311082921,1704899493952,-3471.19,0.00030958,2]
[311082922,1704899493962,-500.0,0.00030958,2]
[311082923,1704899493971,-1124.09,0.00030958,2]
[311082924,1704899493980,-500.0,0.00030958,2]
[311082925,1704899493990,-793.02,0.00030958,2]
[311082926,1704899493999,-500.0,0.00030958,2]
[311082927,1704899494008,-1094.09,0.00030958,2]
[311082928,1704899494017,-3741.32,0.00030958,2]
[311082929,1704899494026,-731.83,0.00030958,2]
[311082930,1704899494038,-5381.14,0.00030958,2]
[311082931,1704899494047,-370.30838238,0.00030958,2]
[311082932,1704899494057,-818.1,0.00030958,2]
[311082933,1704899494066,-1531.68,0.00030958,2]
[311082934,1704899494077,-500.0,0.00030958,2]
[311082935,1704899494088,-1274.61,0.00030958,2]
[311082936,1704899494099,-500.0,0.00030958,2]
[311082937,1704899494109,-919.19,0.00030958,2]
[311082938,1704899494118,-500.0,0.00030958,2]
[311082939,1704899494128,-733.62,0.00030958,2]
[311082940,1704899494137,-500.0,0.00030958,2]
[311082941,1704899494148,-2072.84,0.00030958,2]
[311082942,1704899494157,-621.80946044,0.00030958,2]
[311082943,1704899494167,-500.0,0.00030958,2]
[311082944,1704899494176,-500.0,0.00030958,2]
[311082945,1704899494185,-500.0,0.00030958,2]
[311082946,1704899494195,-650.59,0.00030958,2]
[311082947,1704899494205,-500.0,0.00030958,2]
[311082948,1704899494215,-989.56,0.00030958,2]
[311082949,1704899494226,-1481.78,0.00030958,2]
[311082950,1704899494235,-500.0,0.00030958,2]
[311082951,1704899494244,-500.0,0.00030958,2]
[311082952,1704899494254,-500.0,0.00030958,2]
[311082953,1704899494265,-500.0,0.00030958,2]
[311082954,1704899494274,-500.0,0.00030958,2]
[311082955,1704899494283,-509.47,0.00030958,2]
[311082956,1704899494293,-598.24395103,0.00030958,2]
[311082957,1704899494440,-500.0,0.00030958,2]
[311082958,1704899494450,-6289.03,0.00030958,2]
[311082959,1704899494459,-515.71,0.00030958,2]
[311082960,1704899494469,-819.58,0.00030958,2]
[311082961,1704899494479,-521.29,0.00030958,2]
[311082962,1704899494488,-1875.44,0.00030958,2]
[311082963,1704899494498,-500.0,0.00030958,2]
[311082964,1704899494508,-805.22,0.00030958,2]
[311082965,1704899494518,-500.0,0.00030958,2]
[311082966,1704899494528,-500.0,0.00030958,2]
[311082967,1704899494538,-1558.12,0.00030958,2]
[311082968,1704899494548,-840.19,0.00030958,2]
[311082969,1704899494557,-500.0,0.00030958,2]
[311082970,1704899494568,-784.12,0.00030958,2]
[311082971,1704899494578,-656.58,0.00030958,2]
[311082972,1704899494590,-500.0,0.00030958,2]
[311082973,1704899494600,-500.0,0.00030958,2]
[311082974,1704899494610,-500.0,0.00030958,2]
[311082975,1704899494620,-1222.92,0.00030958,2]
[311082976,1704899494630,-561.56,0.00030958,2]
[311082977,1704899494640,-500.0,0.00030958,2]
[311082978,1704899494650,-500.0,0.00030958,2]
[311082979,1704899494659,-636.18,0.00030958,2]
[311082980,1704899494669,-867.87,0.00030958,2]
[311082981,1704899494679,-259.85987777,0.00030958,2]
[311082982,1704899494689,-500.0,0.00030958,2]
[311082983,1704899494700,-500.0,0.00030958,2]
[311082984,1704899494710,-1743.0,0.00030958,2]
[311082985,1704899494720,-1439.95,0.00030958,2]
[311082986,1704899494730,-500.0,0.00030958,2]
[311082987,1704899494740,-500.0,0.00030958,2]
[311082988,1704899494750,-500.0,0.00030958,2]
[311082989,1704899494759,-785.35,0.00030958,2]
[311082990,1704899494769,-790.76,0.00030958,2]
[311082991,1704899494779,-500.0,0.00030958,2]
[311082992,1704899494789,-4176.73,0.00030958,2]
[311082993,1704899494798,-500.0,0.00030958,2]
[311082994,1704899494808,-500.0,0.00030958,2]
[311082995,1704899494830,-500.0,0.00030958,2]
[311082996,1704899494843,-596.32,0.00030958,2]
[311082997,1704899494854,-500.0,0.00030958,2]
[311082998,1704899494864,-588.0,0.00030958,2]
[311082999,1704899494875,-500.0,0.00030958,2]
[311083000,1704899494887,-1629.67,0.00030958,2]
[311083001,1704899494897,-8748.7,0.00030958,2]
[311083002,1704899494909,-500.0,0.00030958,2]
[311083003,1704899494928,-373.68260008,0.00030958,2]
[311083004,1704899494947,-9935.76,0.00030958,2]
[311083005,1704899494959,-1788.8,0.00030958,2]
[311083006,1704899494973,-1765.13,0.00030958,2]
[311083007,1704899494984,-955.19,0.00030958,2]
[311083008,1704899494995,-857.54,0.00030958,2]
[311083009,1704899495007,-500.0,0.00030958,2]
[311083010,1704899495020,-500.0,0.00030958,2]
[311083011,1704899495031,-500.0,0.00030958,2]
[311083012,1704899495042,-500.0,0.00030958,2]
[311083013,1704899495053,-500.0,0.00030958,2]
[311083014,1704899495065,-597.54,0.00030958,2]
[311083015,1704899495076,-500.0,0.00030958,2]
[311083016,1704899495092,-500.0,0.00030958,2]
[311083017,1704899495116,-500.0,0.00030958,2]
[311083018,1704899495127,-500.0,0.00030958,2]
[311083019,1704899495142,-500.0,0.00030958,2]
[311083020,1704899495155,-919.79,0.00030958,2]
[311083021,1704899495167,-1658.36,0.00030958,2]
[311083022,1704899495177,-500.0,0.00030958,2]
[311083023,1704899495189,-2663.91,0.00030958,2]
[311083024,1704899495200,-695.5,0.00030958,2]
[311083025,1704899495211,-60.24419816,0.00030958,2]
[311083026,1704899495640,-439.75580184,0.00030958,2]
[311083027,1704899495651,-2931.73,0.00030958,2]
[311083028,1704899495662,-781.74,0.00030958,2]
[311083029,1704899495672,-1454.11,0.00030958,2]
[311083030,1704899495682,-938.65,0.00030958,2]
[311083031,1704899495692,-1025.5,0.00030958,2]
[311083032,1704899495703,-500.0,0.00030958,2]
[311083033,1704899495713,-1839.72440652,0.00030958,2]
[311083034,1704899495726,-284.02500002,0.00030958,2]
[311083035,1704899495739,-898.17456913,0.00030958,2]
[311083036,1704899495819,-459.91149139,0.00030958,2]
[311083037,1704899495831,-42.97453294,0.00030958,2]
[311083038,1704899495846,-500.0,0.00030958,2]
[311083039,1704899495857,-500.0,0.00030958,2]
[311083040,1704899495868,-500.0,0.00030958,2]
[311083041,1704899495879,-904.18,0.00030958,2]
[311083042,1704899495889,-14.54922601,0.00030958,2]
[311083043,1704899497880,1129.58550091,0.00021847,2]
[311083045,1704899507754,155.0,0.00021846,2]
[311083046,1704899521365,1000.0,0.00031,30]
[311083047,1704899524214,205.0,0.00021881,2]
[311083048,1704899941056,-158.20515269,0.00022799,2]
[311083049,1704899941077,-155.0,0.000228,2]
[311083050,1704899941098,-5435.05374584,0.00022898,2]
[311083051,1704899941122,-188.57543679,0.00022898,2]
[311083052,1704899941142,-721.71,0.00022899,2]
[311083053,1704899941165,-11742.44782393,0.000229,2]
[311083054,1704899941187,-233.89654324,0.00022997,2]
[311083055,1704899941210,-2594.38329,0.00022997,2]
[311083056,1704899941231,-347.8505,0.00022998,2]
[311083057,1704899996454,155.0,0.000228,2]
[311083058,1704900010419,254.25355209,0.000228,2]
[311083060,1704900244238,205.0,0.00022813,2]
[311083065,1704900366249,152.0,0.0002,3]
[311083066,1704900385693,153.0,0.0002,12]
[311083067,1704900410498,153.0,0.0002,9]
[311083068,1704900431983,196.0,0.0002,16]
[311083069,1704900463076,177.0,0.00025,16]
[311083287,1704900633552,-158.20515269,0.00023805,2]
[311083288,1704900633563,-91.79484731,0.00023806,2]
[311083289,1704900633576,-190.11515269,0.00023806,2]
[311083290,1704900633587,-342.70931671,0.00024899,2]
[311083291,1704900633676,-88.08663651,0.00024899,2]
[311083292,1704900633685,-188.57543678,0.000249,2]
[311083293,1704900633695,-5435.05374584,0.00024911,2]
[311083294,1704900633704,-205.0,0.00024912,2]
[311083295,1704900633714,-350.0,0.00025,3]
[311083296,1704900633724,-412.87,0.00025479,2]
[311083297,1704900633733,-726.95,0.00025534,2]
[311083298,1704900633743,-500.0,0.00025536,2]
[311083299,1704900633753,-162.98,0.00025583,2]
[311083300,1704900633762,-250.0,0.00025608,2]
[311083301,1704900633772,-2000.0,0.0002567,2]
[311083302,1704900633781,-250.0,0.0002567,2]
[311083303,1704900633791,-500.0,0.00025719,2]
[311083304,1704900633800,-200.0,0.00025724,2]
[311083305,1704900633810,-2421.27915755,0.00025734,2]
[311083306,1704900633822,-889.03846244,0.00025734,2]
[311083307,1704900633834,-20569.68238001,0.00025734,2]
[311083309,1704900633842,-203.58,0.00025748,2]
[311083311,1704900633852,-273.05,0.00025791,2]
[311083313,1704900633861,-162.86,0.00025941,2]
[311083315,1704900633870,-1217.71314932,0.00025999,2]